fUSD/lending_fUSD_20250309
["ID","MTS","AMOUNT","RATE_DAILY","PERIOD"]
[355750553,1741531832519,-641.0,9.18e-05,2]
[355750554,1741531832530,-109.29559938,9.18e-05,2]
[355750555,1741531832541,-731.81840631,9.18e-05,2]
[355750556,1741531832565,-617.88599431,9.18e-05,2]
[355750557,1741531832575,-150.0,9.18e-05,2]
[355750558,1741531832585,-699.509,9.18e-05,2]
[355750559,1741531832595,-907.0,9.18e-05,2]
[355750560,1741531832605,-541.0,9.18e-05,2]
[355750561,1741531832614,-1270.0,9.18e-05,2]
[355750562,1741531832624,-1428.0,9.18e-05,2]
[355750563,1741531832634,-4076.0,9.18e-05,2]
[355750564,1741531832643,-267.08,9.18e-05,2]
[355750565,1741531832652,-1589.02569287,9.18e-05,2]
[355750566,1741531832665,-538.81186742,9.18e-05,2]
[355750567,1741531832676,-409.99243971,9.18e-05,2]
[355750568,1741531832686,-2931.3784911,9.18e-05,2]
[355750569,1741531832697,-1000.6215089,9.18e-05,2]
[355750570,1741531832706,-1012.0,9.18e-05,2]
[355750571,1741531832716,-150.0,9.18e-05,2]
[355750572,1741531832726,-500.0,9.198e-05,2]
[355750573,1741531832736,-500.0,9.198e-05,2]
[355750574,1741531832745,-500.0,9.198e-05,2]
[355750575,1741531832754,-795.47602474,9.198e-05,2]
[355750576,1741531832766,-155.62397526,9.198e-05,2]
[355750577,1741531832777,-500.0,9.198e-05,2]
[355750578,1741531832787,-532.09,9.198e-05,2]
[355750579,1741531832797,-1000.0,9.2e-05,2]
[355750580,1741531832807,-2224.28602474,9.25e-05,2]
[355750581,1741531832820,-8473.83854399,9.25e-05,2]
[355750583,1741531832829,-500.0,9.323e-05,2]
[355750585,1741531832840,-504.3680041,9.323e-05,2]
[355750587,1741531832850,-4145.78261687,9.337e-05,2]
[355750589,1741531832861,-186.91591913,9.337e-05,2]
[355750591,1741531832872,-313.08408087,9.337e-05,2]
[355750593,1741531832883,-1434.30223989,9.337e-05,2]
[355750612,1741531838333,-696.31123154,9.337e-05,2]
[355750613,1741531838343,-390.8511372,9.337e-05,2]
[355750614,1741531838352,-985.29597008,9.337e-05,2]
[355750615,1741531838363,-2652.74389695,9.337e-05,2]
[355750616,1741531838375,-558.445349,9.337e-05,2]
[355750617,1741531838386,-3141.87869847,9.337e-05,2]
[355750618,1741531838396,-877.6728736,9.337e-05,2]
[355750619,1741531838405,-988.54,9.339e-05,2]
[355750620,1741531838415,-1682.83,9.339e-05,2]
[355750621,1741531838425,-803.59,9.339e-05,2]
[355750622,1741531838434,-801.69,9.339e-05,2]
[355750623,1741531838444,-120.64213207,9.339e-05,2]
[355750802,1741531840459,-438.13786793,9.339e-05,2]
[355750804,1741531840470,-1316.73,9.339e-05,2]
[355750806,1741531840480,-855.61,9.339e-05,2]
[355750808,1741531840491,-1326.03,9.339e-05,2]
[355750810,1741531840501,-1433.19,9.339e-05,2]
[355750812,1741531840514,-500.0,9.339e-05,2]
[355750814,1741531840524,-500.0,9.339e-05,2]
[355750816,1741531840535,-717.36,9.339e-05,2]
[355750818,1741531840544,-2144.86,9.339e-05,2]
[355750820,1741531840554,-1629.4,9.339e-05,2]
[355750822,1741531840563,-26.1760744,9.339e-05,2]
[355750825,1741531840581,-262.81021252,9.339e-05,2]
[355750829,1741531840612,-279.84247589,9.339e-05,2]
[355751106,1741531843402,-270.93401161,9.18e-05,2]
[355751109,1741531843413,-743.88844783,9.18e-05,2]
[355751111,1741531843425,-98.17754056,9.18e-05,2]
[355751113,1741531843436,-791.47123719,9.339e-05,2]
[355751115,1741531843445,-892.69,9.339e-05,2]
[355751117,1741531843454,-500.0,9.339e-05,2]
[355751119,1741531843463,-899.07,9.339e-05,2]
[355751121,1741531843472,-945.58,9.339e-05,2]
[355751122,1741531843482,-500.0,9.339e-05,2]
[355751124,1741531843491,-797.25,9.339e-05,2]
[355751127,1741531843501,-500.0,9.339e-05,2]
[355751129,1741531843511,-753.29,9.339e-05,2]
[355751130,1741531843520,-500.0,9.339e-05,2]
[355751132,1741531843530,-356.78,9.339e-05,2]
[355751135,1741531843541,-796.14,9.339e-05,2]
[355751137,1741531843550,-3331.32,9.339e-05,2]
[355751139,1741531843559,-559.34,9.339e-05,2]
[355751140,1741531843569,-500.0,9.339e-05,2]
[355751143,1741531843579,-1012.8704,9.339e-05,2]
[355751145,1741531843588,-157211.09984906,9.34e-05,2]
[355751146,1741531843598,-3027610.58083975,9.34e-05,2]
[355751273,1741531844901,-3268.2265522,9.34e-05,2]
[355751275,1741531844912,-1027.026,9.34e-05,2]
[355751278,1741531844931,-3933.0455086,9.34e-05,2]
[355751280,1741531844942,-260801.67772536,9.34e-05,2]
[355751283,1741531844953,-167812.01424136,9.34e-05,2]
[355751285,1741531844965,-560.47152291,9.34e-05,2]
[355751287,1741531844976,-627.77380027,9.34e-05,2]
[355751290,1741531844996,-833.513565,9.34e-05,2]
[355751413,1741531846258,-1092.75,9.339e-05,2]
[355751416,1741531846268,-1084013.15445121,9.34e-05,2]
[355751434,1741531846440,-48122.2799886,9.34e-05,2]
[355751436,1741531846449,-500.0,9.342e-05,2]
[355751438,1741531846458,-500.0,9.342e-05,2]
[355751440,1741531846467,-500.0,9.342e-05,2]
[355751442,1741531846476,-500.0,9.342e-05,2]
[355751444,1741531846486,-500.0,9.342e-05,2]
[355751446,1741531846496,-416.23974447,9.342e-05,2]
[355751448,1741531846505,-500.0,9.342e-05,2]
[355751450,1741531846515,-500.0,9.342e-05,2]
[355751452,1741531846524,-500.0,9.342e-05,2]
[355751454,1741531846533,-500.0,9.342e-05,2]
[355751456,1741531846543,-1546.16,9.342e-05,2]
[355751458,1741531846553,-500.0,9.342e-05,2]
[355751460,1741531846562,-505.65,9.342e-05,2]
[355751462,1741531846571,-500.0,9.342e-05,2]
[355751464,1741531846580,-649.4,9.342e-05,2]
[355751466,1741531846590,-500.0,9.342e-05,2]
[355751468,1741531846599,-529.41,9.342e-05,2]
[355751470,1741531846609,-500.0,9.342e-05,2]
[355751472,1741531846618,-500.0,9.342e-05,2]
[355751474,1741531846628,-553.09,9.342e-05,2]
[355751476,1741531846637,-500.0,9.342e-05,2]
[355751478,1741531846646,-500.0,9.342e-05,2]
[355751480,1741531846656,-500.0,9.342e-05,2]
[355751482,1741531846665,-500.0,9.342e-05,2]
[355751484,1741531846674,-500.0,9.342e-05,2]
[355751486,1741531846684,-530.42,9.342e-05,2]
[355751488,1741531846693,-500.0,9.342e-05,2]
[355751490,1741531846702,-500.0,9.342e-05,2]
[355751492,1741531846712,-500.0,9.342e-05,2]
[355751494,1741531846722,-511.4,9.342e-05,2]
[355751496,1741531846732,-506.93809428,9.342e-05,2]
[355751498,1741531846747,-500.0,9.342e-05,2]
[355751500,1741531846757,-500.0,9.342e-05,2]
[355751502,1741531846766,-500.0,9.342e-05,2]
[355751505,1741531846776,-2656.53,9.342e-05,2]
[355751507,1741531846787,-500.0,9.342e-05,2]
[355751508,1741531846796,-1052.87,9.342e-05,2]
[355751510,1741531846807,-500.0,9.342e-05,2]
[355751513,1741531846816,-1446.28,9.342e-05,2]
[355751514,1741531846826,-1978.41,9.342e-05,2]
[355751517,1741531846836,-1354.22,9.342e-05,2]
[355751519,1741531846846,-560.78,9.342e-05,2]
[355751521,1741531846856,-6069.33,9.342e-05,2]
[355751523,1741531846866,-385.338602,9.342e-05,2]
[355751525,1741531846877,-1054.14,9.342e-05,2]
[355751527,1741531846886,-500.0,9.342e-05,2]
[355751529,1741531846896,-2332.59,9.342e-05,2]
[355751531,1741531846905,-650.22,9.342e-05,2]
[355751533,1741531846915,-500.0,9.342e-05,2]
[355751535,1741531846925,-1249.05,9.342e-05,2]
[355751536,1741531846935,-1412.51,9.342e-05,2]
[355751539,1741531846944,-500.0,9.342e-05,2]
[355751540,1741531846956,-613.33,9.342e-05,2]
[355751542,1741531846966,-1156.81,9.342e-05,2]
[355751544,1741531846975,-598.36,9.342e-05,2]
[355751546,1741531846985,-754.61,9.342e-05,2]
[355751548,1741531846994,-573.81,9.342e-05,2]
[355751550,1741531847003,-634.41436595,9.342e-05,2]
[355751552,1741531847013,-500.0,9.342e-05,2]
[355751554,1741531847022,-1005.92,9.342e-05,2]
[355751556,1741531847031,-500.0,9.342e-05,2]
[355751558,1741531847043,-213.645285,9.342e-05,2]
[355751560,1741531847053,-891.65,9.342e-05,2]
[355751562,1741531847064,-1322.27,9.342e-05,2]
[355751564,1741531847074,-500.0,9.342e-05,2]
[355751565,1741531847085,-500.0,9.342e-05,2]
[355751566,1741531847096,-1007.94,9.342e-05,2]
[355751567,1741531847106,-767.34,9.342e-05,2]
[355751568,1741531847116,-888.89,9.342e-05,2]
[355751569,1741531847127,-557.27,9.342e-05,2]
[355751570,1741531847139,-623.86,9.342e-05,2]
[355751572,1741531847153,-817.21,9.342e-05,2]
[355751574,1741531847163,-1564.25,9.342e-05,2]
[355751576,1741531847173,-500.0,9.342e-05,2]
[355751578,1741531847186,-1700.26,9.342e-05,2]
[355751580,1741531847197,-500.0,9.342e-05,2]
[355751582,1741531847208,-808.19,9.342e-05,2]
[355751584,1741531847218,-2679.28,9.342e-05,2]
[355751586,1741531847228,-500.0,9.342e-05,2]
[355751588,1741531847238,-1353.98,9.342e-05,2]
[355751590,1741531847247,-543.27,9.342e-05,2]
[355751592,1741531847257,-878.1,9.342e-05,2]
[355751594,1741531847267,-500.0,9.342e-05,2]
[355751596,1741531847277,-500.0,9.342e-05,2]
[355751598,1741531847288,-552.99,9.342e-05,2]
[355751600,1741531847297,-4464.49,9.342e-05,2]
[355751602,1741531847307,-572.96,9.342e-05,2]
[355751604,1741531847317,-160.1839197,9.342e-05,2]
[355751607,1741531847331,-417.32537477,9.342e-05,2]
[355751609,1741531847343,-304.74070553,9.342e-05,2]
[355751611,1741531847352,-501.08132707,9.342e-05,2]
[355751614,1741531847368,-109.83867293,9.342e-05,2]
[355751616,1741531847377,-809.59,9.342e-05,2]
[355751618,1741531847387,-500.0,9.342e-05,2]
[355751620,1741531847397,-1326.61,9.342e-05,2]
[355751622,1741531847407,-500.0,9.342e-05,2]
[355751624,1741531847417,-1305.46,9.342e-05,2]
[355751626,1741531847426,-6584.65,9.342e-05,2]
[355751628,1741531847437,-500.0,9.342e-05,2]
[355751630,1741531847448,-6608.08579634,9.342e-05,2]
[355752603,1741531877305,1533.49,0.00028,120]
[355752604,1741532034246,-1000.0,8.727e-05,2]
[355752605,1741532428895,-724.71,9.315e-05,14]
[355752608,1741532696670,1000.0,0.00028,120]
[355752885,1741532980008,-1211.28,8.219e-05,2]
[355752886,1741532980068,-3882.96071075,8.733e-05,2]
[355752887,1741532980340,-1189.52401792,8.733e-05,2]
[355752918,1741533032519,-300.0,8.732e-05,2]
[355752919,1741533032531,-407.07731665,8.733e-05,2]
[355752920,1741533032545,-629.99914214,8.733e-05,2]
[355752921,1741533032610,-2697.1634484,8.733e-05,2]
[355752922,1741533032714,-3618.17903458,8.733e-05,2]
[355752923,1741533032728,-2333.15263314,8.733e-05,2]
[355752924,1741533032947,-4472.25,8.733e-05,2]
[355753223,1741533038364,-4669.69369642,8.733e-05,2]
[355753226,1741533038374,-150.0,9.134e-05,2]
[355753227,1741533038384,-3932.0,9.134e-05,2]
[355753228,1741533038393,-1012.0,9.134e-05,2]
[355753229,1741533038403,-1822.613,9.156e-05,2]
[355753230,1741533038412,-168.49078203,9.156e-05,2]
[355753231,1741533038422,-2032.0,9.18e-05,2]
[355753232,1741533038431,-1278.0,9.18e-05,2]
[355753233,1741533038441,-1428.0,9.18e-05,2]
[355753234,1741533038450,-907.0,9.18e-05,2]
[355753235,1741533038460,-1270.0,9.18e-05,2]
[355753236,1741533038469,-541.0,9.18e-05,2]
[355753237,1741533038478,-4076.0,9.18e-05,2]
[355753238,1741533038488,-902.20373675,9.27e-05,2]
[355753239,1741533038498,-508.38492608,9.323e-05,2]
[355753240,1741533038507,-119999.99999901,9.33e-05,2]
[355753241,1741533038516,-3641.6368246,9.337e-05,2]
[355753242,1741533038526,-435.5420218,9.337e-05,2]
[355753243,1741533038535,-1385.1076697,9.337e-05,2]
[355753244,1741533038544,-2772.9975014,9.337e-05,2]
[355753245,1741533038554,-1212.676163,9.337e-05,2]
[355753246,1741533038566,-375.086808,9.337e-05,2]
[355753247,1741533038575,-911.48,9.339e-05,2]
[355753248,1741533038584,-500.0,9.339e-05,2]
[355753249,1741533038594,-509.92,9.339e-05,2]
[355753250,1741533038604,-1456.73,9.339e-05,2]
[355753251,1741533038614,-500.0,9.339e-05,2]
[355753252,1741533038623,-723.17,9.339e-05,2]
[355753253,1741533038635,-500.0,9.339e-05,2]
[355753254,1741533038644,-980.86,9.339e-05,2]
[355753255,1741533038654,-817.99,9.339e-05,2]
[355753256,1741533038663,-502.29778362,9.339e-05,2]
[355753257,1741533038672,-579.0,9.339e-05,2]
[355753258,1741533038682,-500.0,9.339e-05,2]
[355753259,1741533038695,-732.58,9.339e-05,2]
[355753260,1741533038704,-500.0,9.339e-05,2]
[355753261,1741533038714,-801.02,9.339e-05,2]
[355753262,1741533038723,-567.12,9.339e-05,2]
[355753263,1741533038733,-500.0,9.339e-05,2]
[355753264,1741533038742,-40000.0,9.34e-05,2]
[355753265,1741533038752,-811.52,9.34e-05,2]
[355753266,1741533038761,-998.52,9.34e-05,2]
[355753267,1741533038772,-808.74,9.34e-05,2]
[355753268,1741533038782,-1701.64,9.34e-05,2]
[355753269,1741533038791,-562.27,9.34e-05,2]
[355753270,1741533038801,-1325.79,9.34e-05,2]
[355753271,1741533038810,-1330.33,9.34e-05,2]
[355753272,1741533038820,-840.79,9.34e-05,2]
[355753273,1741533038831,-500.0,9.34e-05,2]
[355753274,1741533038840,-500.0,9.34e-05,2]
[355753275,1741533038850,-508.68428117,9.34e-05,2]
[355753276,1741533038859,-500.0,9.34e-05,2]
[355753277,1741533038870,-1373.47,9.34e-05,2]
[355753278,1741533038880,-2159.69,9.34e-05,2]
[355753279,1741533038889,-723.11,9.34e-05,2]
[355753280,1741533038899,-1381.36,9.34e-05,2]
[355753281,1741533038908,-500.0,9.34e-05,2]
[355753282,1741533038918,-898.71,9.34e-05,2]
[355753283,1741533038929,-500.0,9.34e-05,2]
[355753284,1741533038939,-946.77,9.34e-05,2]
[355753285,1741533038948,-908.19,9.34e-05,2]
[355753286,1741533038958,-798.34,9.34e-05,2]
[355753287,1741533038968,-500.0,9.34e-05,2]
[355753288,1741533038977,-599.65,9.34e-05,2]
[355753289,1741533038986,-500.0,9.34e-05,2]
[355753290,1741533038996,-500.0,9.34e-05,2]
[355753291,1741533039005,-1729.27,9.34e-05,2]
[355753292,1741533039015,-846.62,9.34e-05,2]
[355753293,1741533039024,-500.0,9.34e-05,2]
[355753294,1741533039033,-1047.22,9.34e-05,2]
[355753295,1741533039043,-500.0,9.341e-05,2]
[355753296,1741533039052,-206.005422,9.341e-05,2]
[355753297,1741533039062,-1365.85,9.341e-05,2]
[355753298,1741533039071,-2355.55,9.341e-05,2]
[355753299,1741533039080,-366.416539,9.341e-05,2]
[355753300,1741533039090,-573.43,9.341e-05,2]
[355753301,1741533039100,-1016.16,9.341e-05,2]
[355753302,1741533039110,-1333.4,9.341e-05,2]
[355753303,1741533039119,-756.2,9.341e-05,2]
[355753304,1741533039129,-1544.45,9.341e-05,2]
[355753305,1741533039139,-1000.16,9.341e-05,2]
[355753306,1741533039148,-1715.62,9.341e-05,2]
[355753307,1741533039157,-2707.46,9.341e-05,2]
[355753308,1741533039168,-500.0,9.341e-05,2]
[355753309,1741533039177,-887.62,9.341e-05,2]
[355753310,1741533039187,-4492.51,9.341e-05,2]
[355753311,1741533039197,-547.99,9.341e-05,2]
[355753312,1741533039206,-706.11,9.341e-05,2]
[355753313,1741533039216,-500.0,9.341e-05,2]
[355753314,1741533039225,-672.2,9.341e-05,2]
[355753315,1741533039237,-1000.0,9.342e-05,2]
[355753316,1741533039248,-500.0,9.342e-05,2]
[355753317,1741533039257,-500.0,9.342e-05,2]
[355753318,1741533039268,-627.54,9.342e-05,2]
[355753319,1741533039277,-500.0,9.342e-05,2]
[355753320,1741533039286,-500.0,9.342e-05,2]
[355753321,1741533039296,-500.0,9.342e-05,2]
[355753322,1741533039305,-500.0,9.342e-05,2]
[355753323,1741533039314,-500.0,9.342e-05,2]
[355753324,1741533039324,-500.0,9.342e-05,2]
[355753325,1741533039333,-500.0,9.342e-05,2]
[355753326,1741533039342,-500.0,9.342e-05,2]
[355753327,1741533039351,-530.15,9.342e-05,2]
[355753328,1741533039361,-500.0,9.342e-05,2]
[355753329,1741533039371,-500.0,9.342e-05,2]
[355753330,1741533039384,-500.0,9.342e-05,2]
[355753331,1741533039394,-500.0,9.342e-05,2]
[355753332,1741533039403,-500.0,9.342e-05,2]
[355753333,1741533039412,-500.0,9.342e-05,2]
[355753334,1741533039422,-500.0,9.342e-05,2]
[355753335,1741533039431,-500.0,9.342e-05,2]
[355753336,1741533039441,-471.76259549,9.342e-05,2]
[355753337,1741533039451,-500.0,9.342e-05,2]
[355753338,1741533039460,-500.0,9.342e-05,2]
[355753339,1741533039470,-500.0,9.342e-05,2]
[355753340,1741533039479,-500.0,9.342e-05,2]
[355753341,1741533039489,-500.0,9.342e-05,2]
[355753342,1741533039498,-500.0,9.342e-05,2]
[355753343,1741533039507,-500.0,9.342e-05,2]
[355753344,1741533039516,-500.0,9.342e-05,2]
[355753345,1741533039526,-544.97,9.342e-05,2]
[355753346,1741533039536,-500.0,9.342e-05,2]
[355753347,1741533039546,-500.0,9.342e-05,2]
[355753348,1741533039556,-500.0,9.342e-05,2]
[355753349,1741533039572,-500.0,9.342e-05,2]
[355753350,1741533039582,-1481.74,9.342e-05,2]
[355753351,1741533039592,-500.0,9.342e-05,2]
[355753352,1741533039603,-507.53,9.342e-05,2]
[355753353,1741533039612,-500.0,9.342e-05,2]
[355753354,1741533039622,-500.0,9.342e-05,2]
[355753355,1741533039632,-500.0,9.342e-05,2]
[355753356,1741533039642,-500.0,9.342e-05,2]
[355753357,1741533039652,-500.0,9.342e-05,2]
[355753358,1741533039662,-512.46141827,9.342e-05,2]
[355753359,1741533039672,-500.0,9.342e-05,2]
[355753360,1741533039681,-500.0,9.342e-05,2]
[355753361,1741533039691,-500.0,9.342e-05,2]
[355753362,1741533039700,-500.0,9.342e-05,2]
[355753363,1741533039709,-509.67,9.342e-05,2]
[355753364,1741533039718,-616.94,9.342e-05,2]
[355753365,1741533039727,-500.0,9.342e-05,2]
[355753366,1741533039737,-500.0,9.342e-05,2]
[355753367,1741533039746,-500.0,9.342e-05,2]
[355753368,1741533039755,-500.0,9.342e-05,2]
[355753369,1741533039764,-656.37,9.342e-05,2]
[355753370,1741533039773,-500.0,9.342e-05,2]
[355753371,1741533039782,-500.0,9.342e-05,2]
[355753372,1741533039791,-500.0,9.342e-05,2]
[355753373,1741533039801,-500.0,9.342e-05,2]
[355753374,1741533039810,-500.0,9.342e-05,2]
[355753375,1741533039819,-500.0,9.342e-05,2]
[355753376,1741533039829,-500.0,9.342e-05,2]
[355753377,1741533039838,-500.0,9.342e-05,2]
[355753378,1741533039848,-500.0,9.342e-05,2]
[355753379,1741533039857,-528.18,9.342e-05,2]
[355753380,1741533039867,-500.0,9.342e-05,2]
[355753381,1741533039876,-500.0,9.342e-05,2]
[355753382,1741533039885,-500.0,9.342e-05,2]
[355753383,1741533039894,-641.43,9.342e-05,2]
[355753384,1741533039904,-500.0,9.342e-05,2]
[355753385,1741533039913,-560.02,9.342e-05,2]
[355753386,1741533039923,-500.0,9.342e-05,2]
[355753387,1741533039932,-500.0,9.342e-05,2]
[355753388,1741533039942,-500.0,9.342e-05,2]
[355753389,1741533039951,-500.0,9.342e-05,2]
[355753390,1741533039960,-530.71,9.342e-05,2]
[355753391,1741533039969,-500.0,9.342e-05,2]
[355753392,1741533039979,-500.0,9.342e-05,2]
[355753393,1741533039988,-649.82,9.342e-05,2]
[355753394,1741533039998,-151.09,9.342e-05,2]
[355753395,1741533040008,-500.0,9.342e-05,2]
[355753396,1741533040017,-500.0,9.342e-05,2]
[355753397,1741533040027,-521.88,9.342e-05,2]
[355753398,1741533040036,-517.74,9.342e-05,2]
[355753399,1741533040046,-500.0,9.342e-05,2]
[355753400,1741533040055,-500.0,9.342e-05,2]
[355753401,1741533040065,-500.0,9.342e-05,2]
[355753402,1741533040075,-500.0,9.342e-05,2]
[355753403,1741533040085,-500.0,9.342e-05,2]
[355753404,1741533040094,-500.0,9.342e-05,2]
[355753405,1741533040104,-500.0,9.342e-05,2]
[355753406,1741533040116,-500.0,9.342e-05,2]
[355753407,1741533040126,-500.0,9.342e-05,2]
[355753408,1741533040135,-500.0,9.342e-05,2]
[355753409,1741533040145,-500.0,9.342e-05,2]
[355753410,1741533040155,-550.04,9.342e-05,2]
[355753411,1741533040165,-512.81,9.342e-05,2]
[355753412,1741533040175,-582.02,9.342e-05,2]
[355753413,1741533040185,-500.0,9.342e-05,2]
[355753414,1741533040195,-500.0,9.342e-05,2]
[355753415,1741533040205,-2693.03,9.342e-05,2]
[355753416,1741533040215,-1968.22,9.342e-05,2]
[355753418,1741533040226,-500.0,9.342e-05,2]
[355753420,1741533040235,-613.89110963,9.342e-05,2]
[355753422,1741533040245,-500.0,9.342e-05,2]
[355753424,1741533040254,-500.0,9.342e-05,2]
[355753426,1741533040264,-589.2,9.342e-05,2]
[355753428,1741533040274,-1058.66,9.342e-05,2]
[355753430,1741533040283,-539.68,9.342e-05,2]
[355753432,1741533040292,-922.7,9.342e-05,2]
[355753434,1741533040302,-1999.74,9.342e-05,2]
[355753437,1741533040311,-500.0,9.342e-05,2]
[355753439,1741533040321,-500.0,9.342e-05,2]
[355753441,1741533040330,-500.0,9.342e-05,2]
[355753442,1741533040339,-6143.25,9.342e-05,2]
[355753444,1741533040348,-1062.96,9.342e-05,2]
[355753446,1741533040358,-617.79,9.342e-05,2]
[355753447,1741533040367,-1423.99,9.342e-05,2]
[355753448,1741533040377,-454.99648431,9.342e-05,2]
[355753449,1741533040386,-662.43,9.342e-05,2]
[355753450,1741533040397,-1263.89,9.342e-05,2]
[355753451,1741533040407,-500.0,9.342e-05,2]
[355753452,1741533040416,-500.0,9.342e-05,2]
[355753453,1741533040426,-500.0,9.342e-05,2]
[355753454,1741533040440,-500.0,9.342e-05,2]
[355753455,1741533040449,-621.09,9.342e-05,2]
[355753456,1741533040458,-520.35,9.342e-05,2]
[355753457,1741533040468,-500.0,9.342e-05,2]
[355753458,1741533040477,-581.0,9.342e-05,2]
[355753459,1741533040487,-500.0,9.342e-05,2]
[355753460,1741533040496,-500.0,9.342e-05,2]
[355753461,1741533040505,-1172.91,9.342e-05,2]
[355753462,1741533040514,-500.0,9.342e-05,2]
[355753463,1741533040524,-500.0,9.342e-05,2]
[355753464,1741533040534,-500.0,9.342e-05,2]
[355753465,1741533040543,-645.08,9.342e-05,2]
[355753466,1741533040553,-500.0,9.342e-05,2]
[355753467,1741533040566,-1000.0,9.342e-05,2]
[355753468,1741533040575,-901.65,9.342e-05,2]
[355753469,1741533040585,-1239.7,9.342e-05,2]
[355753470,1741533040594,-631.94,9.342e-05,2]
[355753471,1741533040605,-500.0,9.342e-05,2]
[355753472,1741533040614,-202.0115342,9.342e-05,2]
[355753473,1741533040624,-330.07,9.342e-05,2]
[355753474,1741533040635,-1022.52,9.342e-05,2]
[355753475,1741533040644,-500.0,9.342e-05,2]
[355753476,1741533040653,-2006.4,9.342e-05,2]
[355753477,1741533040663,-500.0,9.342e-05,2]
[355753478,1741533040672,-500.0,9.342e-05,2]
[355753479,1741533040682,-260.27,9.342e-05,2]
[355753480,1741533040692,-465.81,9.342e-05,2]
[355753481,1741533040702,-829.03,9.342e-05,2]
[355753482,1741533040711,-11729.26,9.342e-05,2]
[355753483,1741533040720,-500.0,9.342e-05,2]
[355753484,1741533040730,-500.0,9.342e-05,2]
[355753485,1741533040740,-500.0,9.342e-05,2]
[355753486,1741533040750,-223.57,9.342e-05,2]
[355753487,1741533040759,-500.0,9.342e-05,2]
[355753488,1741533040768,-500.0,9.342e-05,2]
[355753489,1741533040778,-500.0,9.342e-05,2]
[355753490,1741533040786,-500.0,9.342e-05,2]
[355753491,1741533040795,-500.0,9.342e-05,2]
[355753492,1741533040805,-500.0,9.342e-05,2]
[355753493,1741533040814,-554.50000001,9.342e-05,2]
[355753494,1741533040824,-251.73,9.342e-05,2]
[355753495,1741533040833,-1370.39,9.342e-05,2]
[355753496,1741533040844,-548.92,9.342e-05,2]
[355753497,1741533040853,-560.12,9.342e-05,2]
[355753498,1741533040863,-500.0,9.342e-05,2]
[355753499,1741533040872,-500.0,9.342e-05,2]
[355753500,1741533040882,-500.0,9.342e-05,2]
[355753501,1741533040891,-894.39,9.342e-05,2]
[355753502,1741533040900,-500.0,9.342e-05,2]
[355753503,1741533040910,-663.82,9.342e-05,2]
[355753504,1741533040920,-500.0,9.342e-05,2]
[355753505,1741533040930,-619.76,9.342e-05,2]
[355753506,1741533040939,-500.0,9.342e-05,2]
[355753507,1741533040949,-500.0,9.342e-05,2]
[355753508,1741533040959,-500.0,9.342e-05,2]
[355753509,1741533040968,-183.49,9.342e-05,2]
[355753510,1741533040978,-819.25,9.342e-05,2]
[355753511,1741533040988,-500.0,9.342e-05,2]
[355753512,1741533040997,-500.0,9.342e-05,7]
[355753513,1741533041007,-500.0,9.342e-05,2]
[355753514,1741533041016,-500.0,9.342e-05,2]
[355753515,1741533041026,-1344.57,9.342e-05,2]
[355753516,1741533041036,-500.0,9.342e-05,2]
[355753517,1741533041046,-500.0,9.342e-05,2]
[355753518,1741533041056,-1251.06,9.342e-05,2]
[355753519,1741533041066,-510.56819565,9.342e-05,2]
[355753520,1741533041075,-6677.63,9.342e-05,2]
[355753521,1741533041085,-500.0,9.342e-05,2]
[355753524,1741533041095,-500.0,9.342e-05,2]
[355753525,1741533041105,-625.89410896,9.342e-05,2]
[355753528,1741533041114,-500.0,9.342e-05,2]
[355753529,1741533041124,-795.55,9.342e-05,2]
[355753530,1741533041134,-193.09865617,9.342e-05,2]
[355753531,1741533041144,-206.90360744,9.342e-05,2]
[355753532,1741533041153,-223.56002495,9.342e-05,2]
[355753533,1741533041163,-1905.0,9.343e-05,2]
[355753534,1741533041172,-51122.26739003,9.343e-05,2]
[355753535,1741533041219,-468.40396298,9.343e-05,2]
[355753536,1741533041230,-8595.71340036,9.343e-05,2]
[355753537,1741533041242,-3758.59430738,9.343e-05,2]